bitfinex/quotes_SOLUSD_20260222
["timestamp","ask_amount","ask_price","bid_price","bid_amount"]
[1771767055189,0.47089879,84.331,84.304,0.47293243]
[1771767056713,0.47089879,84.329,84.298,0.47293243]
[1771767056900,0.47089879,84.327,84.298,0.47293243]
[1771767058108,0.47089879,84.327,84.283,0.47293243]
[1771767058690,0.47089879,84.349,84.305,0.47293243]
[1771767058913,0.47089879,84.354,84.313,0.47293243]
[1771767059210,12.3257451,84.354,84.315,0.47293243]
[1771767060211,0.47089879,84.354,84.323,0.47293243]
[1771767061308,0.47089879,84.354,84.324,11.85901997]
[1771767061611,0.47089879,84.354,84.325,0.47293243]
[1771767063411,0.47089879,84.352,84.282,9.09448748]
[1771767063608,0.47089879,84.352,84.271,53.38]
[1771767063609,0.47089879,84.352,84.272,11.86633757]
[1771767063790,0.47089879,84.348,84.272,11.86633757]
[1771767063997,0.47089879,84.342,84.272,11.86633757]
[1771767064196,0.47089879,84.342,84.273,0.14216157]
[1771767064917,0.47089879,84.342,84.272,41.5321815]
[1771767065112,0.47089879,84.342,84.273,0.28432314]
[1771767065428,0.47089879,84.34,84.283,0.28432314]
[1771767065621,0.47089879,84.34,84.292,0.40441449]
[1771767067631,0.47089879,84.338,84.294,0.40441449]
[1771767069225,0.47089879,84.338,84.302,0.40441449]
[1771767069415,11.8569108,84.339,84.302,0.40441449]
[1771767069721,11.8569108,84.339,84.304,0.40441449]
[1771767072307,0.48580818,84.343,84.308,0.40441449]
[1771767072512,0.48580818,84.343,84.312,0.40441449]
[1771767075014,0.46329236,84.352,84.314,0.40441449]
[1771767077730,0.46329236,84.35,84.314,0.40441449]
[1771767079534,0.46329236,84.35,84.316,0.40441449]
[1771767080427,0.46329236,84.348,84.318,0.40441449]
[1771767080824,0.46329236,84.348,84.322,0.40441449]
[1771767082541,0.46329236,84.348,84.323,11.8591606]
[1771767082717,0.46329236,84.348,84.324,0.40441449]
[1771767088745,0.46329236,84.348,84.326,0.40441449]
[1771767093332,11.85539732,84.35,84.326,0.40441449]
[1771767093532,0.46329236,84.353,84.326,0.40441449]
[1771767093733,0.46329236,84.351,84.326,0.40441449]
[1771767098047,0.46329236,84.358,84.326,0.40441449]
[1771767099658,11.85438078,84.357,84.326,0.40441449]
[1771767099949,0.4694679,84.356,84.326,0.40441449]
[1771767100147,0.4694679,84.374,84.331,0.28432314]
[1771767100348,0.4694679,84.374,84.342,0.40441449]
[1771767101539,12.32148332,84.374,84.343,0.40441449]
[1771767102051,0.4694679,84.381,84.353,0.40441449]
[1771767103748,0.4694679,84.39,84.363,0.40441449]
[1771767104949,0.4694679,84.39,84.357,0.28432314]
[1771767105254,0.4694679,84.39,84.359,0.28432314]
[1771767105551,0.4694679,84.39,84.361,0.40441449]
[1771767106047,0.4694679,84.39,84.363,0.40441449]
[1771767107632,0.4694679,84.389,84.366,0.28432314]
[1771767107847,0.4694679,84.389,84.37,0.28432314]
[1771767108043,0.4694679,84.399,84.371,0.40441449]
[1771767108352,0.4694679,84.398,84.371,0.40441449]
[1771767111357,0.4694679,84.396,84.371,0.40441449]
[1771767111560,0.4694679,84.396,84.352,0.28432314]
[1771767111942,0.4694679,84.396,84.352,0.68873763]
[1771767112258,0.4694679,84.396,84.354,0.28432314]
[1771767112640,0.4694679,84.396,84.355,0.28432314]
[1771767113355,0.4694679,84.394,84.355,0.28432314]
[1771767113955,0.4694679,84.394,84.357,0.28432314]
[1771767114353,0.4694679,84.392,84.359,0.68873763]
[1771767114664,0.4694679,84.392,84.36,0.40441449]
[1771767114856,0.4694679,84.392,84.337,0.40441449]
[1771767115053,0.4694679,84.388,84.308,0.40441449]
[1771767115442,0.4694679,84.388,84.311,0.40441449]
[1771767116041,0.28432314,84.379,84.311,0.40441449]
[1771767116344,0.28432314,84.379,84.285,29.66125318]
[1771767116345,0.4694679,84.366,84.299,0.40441449]
[1771767116541,0.4694679,84.357,84.289,0.40441449]
[1771767116745,0.4694679,84.357,84.29,0.28432314]
[1771767117450,0.4694679,84.357,84.289,0.40441449]
[1771767117648,0.4694679,84.357,69.454,40.5044417]
[1771767117649,0.4694679,84.357,84.283,0.40441458]
[1771767117844,0.4694679,84.348,84.283,0.40441458]
[1771767118158,0.4694679,84.348,84.284,0.28432314]
[1771767118661,0.4694679,84.343,84.283,0.40441458]
[1771767118845,0.4694679,84.343,84.284,0.28432314]
[1771767119259,0.4694679,84.343,84.283,0.40441458]
[1771767119757,0.4694679,84.341,84.286,0.28432314]
[1771767120560,0.4694679,84.341,84.286,0.40441458]
[1771767123351,0.4694679,84.339,84.292,0.40441458]
[1771767123659,0.4694679,84.339,84.296,0.40441458]
[1771767127561,11.85705138,84.338,84.296,0.40441458]
[1771767127770,0.4694679,84.337,84.296,0.40441458]
[1771767129170,0.4958704,84.335,84.296,0.40441458]
[1771767131968,0.4958704,84.333,84.306,0.40441458]
[1771767134868,0.49023047,84.338,84.306,0.40441458]
[1771767136467,11.85719197,84.337,84.308,0.40441458]
[1771767139672,0.49023047,84.343,84.316,0.40441458]
[1771767139974,11.85621687,84.344,84.316,0.40441458]
[1771767140566,0.49023047,84.343,84.316,0.40441458]
[1771767140765,0.49023047,84.341,84.286,0.40441458]
[1771767141963,0.49023047,84.339,84.288,0.40441458]
[1771767142777,0.49023047,84.339,84.292,0.40441458]
[1771767144183,0.49023047,84.337,84.271,0.40441458]
[1771767144473,0.49023047,84.333,84.271,0.40441458]
[1771767145067,0.49023047,84.333,84.273,0.40441458]
[1771767146980,41.50263244,84.332,84.273,0.40441458]
[1771767147186,0.49023047,84.331,84.273,0.40441458]
[1771767148664,0.49023047,84.331,84.272,0.40441458]
[1771767149084,41.50361674,84.33,84.272,0.40441458]
[1771767149263,0.49023047,84.329,84.272,0.40441458]
[1771767151683,0.49023047,84.327,84.272,0.40441458]
[1771767152867,0.49023047,84.327,84.221,61.4]
[1771767152868,0.49023047,84.324,84.263,0.40441458]
[1771767153062,0.49023047,84.324,84.273,0.40441458]
[1771767153574,3.69383402,84.32,84.253,0.28432314]
[1771767153760,0.49023047,84.319,84.253,0.40441458]
[1771767153962,0.49023047,84.319,84.256,0.28432314]
[1771767154166,0.49023047,84.319,84.254,0.28432314]
[1771767154167,0.49023047,84.319,84.263,0.40441458]
[1771767158078,0.28432314,84.305,84.242,0.40441458]
[1771767158288,0.49828404,84.304,84.242,0.40441458]
[1771767159984,0.49828404,84.302,84.242,0.40441458]
[1771767161384,0.49828404,84.294,84.242,0.40441458]
[1771767161806,0.49828404,84.286,84.227,0.40441458]
[1771767161989,0.49828404,84.284,84.227,0.40441458]
[1771767162170,0.49828404,84.274,84.22,0.50441458]
[1771767164169,0.49828404,84.272,84.22,0.50441458]
[1771767164390,0.49828404,84.272,84.22,0.47706102]
[1771767166487,0.49828404,84.27,84.22,0.47706102]
[1771767167086,0.49828404,84.27,84.22,0.07264644]
[1771767167278,100.86506626,84.271,84.22,0.07264644]
[1771767167279,0.49828404,84.267,84.22,0.07264644]
[1771767168391,0.49828404,84.261,84.22,0.07264644]
[1771767170398,0.49828404,84.259,84.22,0.07264644]
[1771767172296,0.49828404,84.257,84.221,0.40441458]
[1771767175111,0.49828404,84.255,84.221,0.40441458]
[1771767178286,0.49828404,84.267,84.223,0.40441458]
[1771767179487,0.49828404,84.266,84.223,0.40441458]
[1771767180206,0.49828404,84.266,84.225,0.40441458]
[1771767180410,42.03319006,84.267,84.225,0.40441458]
[1771767180908,0.49828404,84.266,84.225,0.40441458]
[1771767181617,0.49828404,84.264,84.225,0.40441458]
[1771767182234,0.49828404,84.264,84.226,11.87281836]
[1771767182411,102.7,84.309,84.226,11.87281836]
[1771767182412,0.49828404,84.285,84.231,0.40441458]
[1771767182587,0.49828404,84.284,84.243,0.40441458]
[1771767185104,0.49828404,84.282,84.246,0.28432314]
[1771767185310,11.86478886,84.283,84.253,0.40441458]
[1771767186197,11.86478886,84.283,84.244,11.87028156]
[1771767186198,0.49828404,84.296,84.255,0.40441458]
[1771767188429,41.52084938,84.295,84.263,0.40441458]
[1771767189325,11.86309982,84.295,84.263,0.40441458]
[1771767190712,11.86225548,84.301,84.265,0.40441458]
[1771767191817,11.86056717,84.313,84.267,0.28432314]
[1771767191997,0.5,84.312,84.265,0.28432314]
[1771767192785,11.86084852,84.311,84.266,41.53513872]
[1771767192992,11.86084852,84.311,84.267,0.28432314]
[1771767193611,0.5,84.31,84.267,0.28432314]
[1771767193814,0.5,84.31,84.256,11.86859096]
[1771767194019,0.5,84.31,84.257,0.28432314]
[1771767194591,0.5,84.31,84.257,0.14216157]
[1771767196412,0.5,84.308,84.256,0.28432314]
[1771767198897,0.5,84.306,84.247,0.28432314]
[1771767199098,0.5,84.306,84.247,0.14216157]
[1771767202105,0.5,84.304,84.247,12.154182]
[1771767204927,0.5,84.302,84.247,41.82882916]
[1771767206127,0.5,84.3,84.247,41.82882916]
[1771767207130,41.5178942,84.301,84.229,11.87239549]
[1771767207131,0.5,84.294,84.229,11.87239549]
[1771767207318,0.5,84.294,84.23,0.28432314]
[1771767207630,0.5,84.294,84.229,11.87239549]
[1771767208530,0.5,84.292,84.23,0.28432314]
[1771767208730,0.5,84.292,84.229,11.87239549]
[1771767209230,0.5,84.292,84.23,0.28432314]
[1771767210733,0.5,84.29,84.232,0.28432314]
[1771767211233,0.5,84.284,84.224,11.87304794]
[1771767212024,0.5,84.284,84.22,0.07264644]
[1771767212211,0.45523835,84.274,84.173,0.17264644]
[1771767212412,0.45523835,84.274,84.16,0.1]
[1771767212413,0.45523835,84.257,84.16,0.1]
[1771767212709,0.28432314,84.23,84.16,0.1]
[1771767212936,3.69383402,84.235,84.16,0.1]
[1771767212937,0.14216157,84.212,84.16,0.1]
[1771767213111,0.45523835,84.203,84.161,0.17264644]
[1771767213314,3.69383402,84.226,84.161,0.17264644]
[1771767213315,0.45523835,84.223,84.161,0.17264644]
[1771767214926,0.45523835,84.221,84.163,0.17264644]
[1771767217233,0.45523835,84.219,84.165,0.17264644]
[1771767219724,0.46154166,84.216,84.16,0.1]
[1771767219931,0.46154166,84.213,84.16,0.1]
[1771767221710,0.28432314,84.214,84.161,11.88198809]
[1771767221711,0.46154166,84.211,84.161,11.88198809]
[1771767221933,0.46154166,84.208,84.162,0.17264644]
[1771767222121,0.46154166,84.208,84.16,0.1]
[1771767222321,0.46154166,84.208,84.16,0.27264644]
[1771767222520,0.46154166,84.208,84.161,0.17264644]
[1771767223138,0.46154166,84.208,84.16,0.1]
[1771767223333,0.46154166,84.208,84.16,0.27264644]
[1771767223630,0.46154166,84.208,84.163,0.17264644]
[1771767224034,0.46154166,84.206,84.165,0.17264644]
[1771767225735,3.69383402,84.221,84.168,0.28432314]
[1771767225929,0.46154166,84.21,84.173,0.17264644]
[1771767226123,41.54943789,84.237,84.173,0.17264644]
[1771767226322,0.46154166,84.233,84.173,0.17264644]
[1771767226631,0.46154166,84.233,84.183,0.17264644]
[1771767229540,59.34188994,84.258,84.185,0.17264644]
[1771767229541,0.46154166,84.231,84.185,0.17264644]
[1771767231743,0.46154166,84.229,84.187,0.17264644]
[1771767232637,11.87154211,84.236,84.193,0.17264644]
[1771767232942,11.87154211,84.236,84.203,0.17264644]
[1771767233540,0.46154166,84.24,84.203,0.17264644]
[1771767234439,0.46154166,84.238,84.205,0.17264644]
[1771767236547,0.46154166,84.236,84.205,0.17264644]
[1771767237054,0.46154166,84.236,84.187,0.17264644]
[1771767237440,0.46154166,84.236,84.19,0.17264644]
[1771767238747,0.46154166,84.234,84.19,0.17264644]
[1771767241149,0.46154166,84.232,84.19,0.17264644]
[1771767242726,0.46154166,84.232,84.177,0.17264644]
[1771767243345,0.46154166,84.23,84.181,0.17264644]
[1771767243647,0.46154166,84.23,84.183,0.17264644]
[1771767244748,0.46154166,84.23,84.169,0.28432314]
[1771767244945,0.46154166,84.23,84.172,0.17264644]
[1771767245260,0.46154166,84.23,84.168,11.88089547]
[1771767245261,0.46154166,84.23,84.182,0.17264644]
[1771767245550,0.46154166,84.228,84.182,0.17264644]
[1771767246348,0.46154166,84.228,84.184,0.17264644]
[1771767246535,0.46154166,84.228,84.192,0.17264644]
[1771767246737,0.46154166,84.228,84.162,0.17264644]
[1771767246933,0.46154166,84.228,84.182,0.17264644]
[1771767248550,0.49797543,84.226,84.182,0.17264644]
[1771767249156,0.49797543,84.226,84.192,0.17264644]
[1771767250158,11.8726774,84.227,84.192,0.17264644]
[1771767251057,0.49797543,84.227,84.192,0.17264644]
[1771767251942,0.49797543,84.239,84.202,0.17264644]
[1771767254362,0.45174239,84.237,84.202,0.17264644]
[1771767255746,11.87112704,84.238,84.202,0.17264644]
[1771767256045,11.87053563,84.243,84.212,0.17264644]
[1771767257165,0.45174239,84.247,84.213,12.15897432]
[1771767257458,11.86945973,84.25,84.222,0.17264644]
[1771767257666,0.45174239,84.249,84.216,0.28432314]
[1771767257963,0.45174239,84.249,84.205,61.4]
[1771767257964,0.45174239,84.247,84.193,0.17264644]
[1771767258653,0.45174239,84.245,84.193,0.17264644]
[1771767260052,0.45174239,84.245,84.197,0.17264644]
[1771767260642,0.45174239,84.243,84.197,0.17264644]
[1771767263869,0.45174239,84.241,84.197,0.17264644]
[1771767264663,11.86920557,84.252,84.204,0.28432314]
[1771767264865,12.36920557,84.252,84.202,0.28432314]
[1771767265071,0.5,84.251,84.202,0.28432314]
[1771767265268,0.5,84.251,84.204,0.28432314]
[1771767266853,11.8694362,84.25,84.206,0.28432314]
[1771767267568,0.5,84.249,84.206,0.28432314]
[1771767268168,0.5,84.247,84.208,0.28432314]
[1771767270164,0.5,84.247,84.21,0.28432314]
[1771767270476,0.5,84.247,84.21,61.68432314]
[1771767271562,0.5,84.245,84.212,0.14216157]
[1771767272273,0.5,84.25,84.212,0.14216157]
[1771767272456,0.5,84.258,84.212,0.14216157]
[1771767272776,0.5,84.256,84.214,0.14216157]
[1771767273472,0.5,84.256,84.214,41.70294718]
[1771767273678,11.8671236,84.267,84.214,41.70294718]
[1771767273873,11.8671236,84.267,84.214,103.10294718]
[1771767274080,0.5,84.266,84.214,103.10294718]
[1771767276786,0.5,84.264,84.214,73.27451017]
[1771767277289,0.5,84.264,84.215,0.28432314]
[1771767278320,13.62894932,84.3,84.215,0.28432314]
[1771767278321,12.36394428,84.289,84.217,0.28432314]
[1771767278506,0.5,84.288,84.225,0.28432314]
[1771767278679,0.5,84.288,84.233,5.64518502]
[1771767278997,0.5,84.288,84.235,0.28432314]
[1771767279491,0.5,84.288,84.234,5.64518502]
[1771767279671,0.5,84.288,84.234,0.28432314]
[1771767280494,0.5,84.286,84.236,0.28432314]
[1771767280994,0.49611415,84.282,84.205,0.45075977]
[1771767281196,0.49611415,84.274,84.205,0.45075977]
[1771767281375,12.87161323,84.281,84.205,0.45075977]
[1771767281376,0.49611415,84.264,84.205,0.45075977]
[1771767282703,0.49611415,84.262,84.207,0.45075977]
[1771767285600,0.49611415,84.26,84.209,0.45075977]
[1771767285798,0.49611415,84.254,84.209,0.45075977]
[1771767286998,0.49611415,84.252,84.209,0.45075977]
[1771767288207,0.49611415,84.25,84.209,0.45075977]
[1771767291088,0.49611415,84.248,84.211,0.45075977]
[1771767293207,0.49611415,84.246,84.211,0.45075977]
[1771767294994,11.87014066,84.245,84.211,0.45075977]
[1771767295308,0.49611415,84.244,84.211,0.45075977]
[1771767298210,0.49611415,84.242,84.211,0.45075977]
[1771767299207,11.87070428,84.241,84.211,0.45075977]
[1771767299398,0.49611415,84.24,84.211,0.45075977]
[1771767299601,0.49611415,84.24,84.213,0.45075977]
[1771767301011,0.49611415,84.238,84.213,0.45075977]
[1771767302323,0.49611415,84.238,84.199,0.45075977]
[1771767303510,0.49611415,84.236,84.199,0.45075977]
[1771767304697,0.49611415,84.234,84.199,0.45075977]
[1771767306410,0.49611415,84.234,84.201,0.45075977]
[1771767307010,0.49611415,84.234,84.203,0.45075977]
[1771767307213,0.49611415,84.232,84.203,0.45075977]
[1771767310522,0.48333032,84.245,84.205,0.45429096]
[1771767310725,0.48333032,84.251,84.211,0.45429096]
[1771767313026,0.48333032,84.249,84.211,0.45429096]
[1771767313311,0.48333032,84.249,84.213,0.45429096]
[1771767316604,0.47957776,84.247,84.215,0.46985193]
[1771767321103,0.47957776,84.245,84.211,0.46985193]
[1771767321703,0.47957776,84.245,84.198,0.46985193]
[1771767322619,0.47957776,84.245,84.199,0.46985193]
[1771767323122,0.47957776,84.243,84.201,0.46985193]
[1771767324628,0.47957776,84.241,84.201,0.46985193]
[1771767327025,0.47957776,84.239,84.201,0.46985193]
[1771767328330,0.47957776,84.239,84.202,11.87620246]
[1771767328536,0.47957776,84.239,84.203,0.46985193]
[1771767331236,11.87112704,84.238,84.204,11.87592038]
[1771767331533,11.87112704,84.238,84.205,0.46985193]
[1771767332036,11.87112704,84.238,84.21,7.4]
[1771767332235,11.87112704,84.238,84.211,0.46985193]
[1771767332923,12.3507048,84.238,84.211,0.46985193]
[1771767333525,0.47957776,84.238,84.213,0.46985193]
[1771767335041,0.47957776,84.236,84.213,0.46985193]
[1771767336643,0.47957776,84.234,84.213,0.46985193]
[1771767336846,0.47957776,84.23,84.15,11.08349647]
[1771767337027,0.14216157,84.227,84.11,0.1]
[1771767337221,5.64518502,84.191,84.12,1e-08]
[1771767337421,0.1,84.129,84.12,1e-08]
[1771767337641,0.47957776,84.16,84.11,0.1]
[1771767337839,0.28432314,84.16,84.11,0.1]
[1771767338125,0.47957776,84.161,84.11,0.1]
[1771767338416,0.49894201,84.168,84.11,11.9891404]
[1771767338726,0.49894201,84.166,84.11,0.1]
[1771767338917,0.49894201,84.164,84.11,0.1]
[1771767339321,0.49894201,84.155,84.11,0.1]
[1771767339536,0.49894201,84.155,84.111,0.49397361]
[1771767340141,11.88114106,84.167,84.111,0.49397361]
[1771767340322,0.49894201,84.178,84.115,0.28432314]
[1771767340527,0.49894201,84.226,84.135,0.49397361]
[1771767340722,0.49894201,84.226,84.159,5.36086188]
[1771767340935,0.49894201,84.226,84.173,0.49397361]
[1771767341132,0.49894201,84.224,84.173,0.49397361]
[1771767342235,0.49894201,84.214,84.173,0.49397361]
[1771767343230,0.49894201,84.212,84.144,0.49397361]
[1771767343941,0.49894201,84.204,84.144,0.49397361]
[1771767344139,0.49894201,84.204,84.146,0.49397361]
[1771767344343,0.49894201,84.204,84.154,0.49397361]
[1771767345938,11.87606142,84.203,84.156,0.49397361]
[1771767346145,0.49894201,84.202,84.156,0.49397361]
[1771767346839,0.49894201,84.194,84.136,53.44]
[1771767347040,0.49894201,84.184,84.137,0.49397361]
[1771767347246,0.49894201,84.184,84.138,0.49397361]
[1771767347833,0.49894201,84.182,84.138,0.49397361]
[1771767348028,0.49894201,84.176,84.121,0.49397361]
[1771767348253,0.49894201,84.174,84.121,0.49397361]
[1771767348943,0.28432314,84.167,84.121,0.49397361]
[1771767349145,3.69383402,84.18,84.121,0.49397361]
[1771767349146,0.49894201,84.164,84.121,0.49397361]
[1771767349329,0.49894201,84.154,84.117,0.49397361]
[1771767350049,11.88286506,84.155,84.118,0.49397361]
[1771767351447,11.88286506,84.155,84.12,0.49397361]
[1771767351851,11.88189893,84.162,84.12,0.49397361]
[1771767352349,0.49894201,84.161,84.12,0.49397361]
[1771767353646,0.49894201,84.154,84.111,0.49397361]
[1771767354554,41.58745246,84.16,84.111,0.49397361]
[1771767354739,11.88212927,84.16,84.113,0.49397361]
[1771767356061,11.88114106,84.167,84.123,0.49397361]
[1771767357054,0.49894201,84.181,84.133,0.49397361]
[1771767357848,11.87914985,84.182,84.133,0.49397361]
[1771767358349,30.19495736,84.187,84.135,0.49397361]
[1771767359557,0.49894201,84.186,84.135,0.49397361]
[1771767360868,11.8786007,84.185,84.137,0.49397361]
[1771767361254,11.8786007,84.185,84.139,0.49397361]
[1771767361445,11.8786007,84.185,84.143,0.49397361]
[1771767362384,0.49894201,84.184,84.143,0.49397361]
[1771767362864,41.57609017,84.183,84.131,0.49397361]
[1771767363047,0.49894201,84.182,84.131,0.49397361]
[1771767363449,0.49894201,84.174,84.131,0.49397361]
[1771767365167,0.28432314,84.169,84.112,0.49397361]
[1771767365367,0.49894201,84.17,84.112,0.49397361]
[1771767365368,0.49894201,84.164,84.112,0.49397361]
[1771767366163,0.49894201,84.164,84.114,0.49397361]
[1771767366366,0.49894201,84.162,84.114,0.49397361]
[1771767366669,0.49894201,84.162,84.1,53.48]
[1771767366670,0.49894201,84.154,84.108,0.49397361]
[1771767366867,100.98250032,84.173,84.1,53.48]
[1771767366868,0.49894201,84.172,84.121,0.49397361]
[1771767367369,47.49443809,84.221,84.1,53.48]
[1771767367370,0.49894201,84.212,84.133,0.49397361]
[1771767367553,0.49894201,84.21,84.133,0.49397361]
[1771767367748,0.14216157,84.201,84.133,0.49397361]
[1771767367965,0.49894201,84.192,84.133,0.49397361]
[1771767368170,3.69383402,84.211,84.133,0.49397361]
[1771767368171,0.48802242,84.184,84.133,0.49397361]
[1771767368967,0.48802242,84.184,84.079,47.57380453]
[1771767368968,0.48802242,84.18,84.116,0.47966603]
[1771767369163,0.48802242,84.166,84.116,0.47966603]
[1771767369370,0.48802242,84.164,84.116,0.47966603]
[1771767369557,0.48802242,84.164,84.118,0.47966603]
[1771767370572,0.48802242,84.162,84.118,0.47966603]
[1771767370867,0.48802242,84.162,84.108,0.47966603]
[1771767371054,0.48802242,84.162,84.11,0.57966603]
[1771767371449,0.48802242,84.162,84.112,0.47966603]
[1771767371666,0.48802242,84.158,84.112,0.47966603]
[1771767371877,0.48802242,84.15,84.11,0.1]
[1771767372068,0.48802242,84.144,84.11,0.1]
[1771767372856,0.48802242,84.142,84.11,0.1]
[1771767375381,0.47247913,84.14,84.11,0.1]
[1771767377177,0.47247913,84.134,84.085,16.78242896]
[1771767377480,0.47247913,84.132,84.085,16.78242896]
[1771767377682,41.60079872,84.133,84.085,16.78242896]
[1771767377683,11.88594249,84.133,84.085,16.78242896]
[1771767377879,11.88594249,84.133,84.091,0.47339712]
[1771767378080,11.88503368,84.14,84.093,0.47339712]
[1771767378386,0.47247913,84.155,84.103,0.47339712]
[1771767379684,0.47247913,84.153,84.105,0.47339712]
[1771767380184,0.47247913,84.131,84.03,0.1]
[1771767380367,0.47247913,84.125,84.032,0.47339712]
[1771767380569,0.47247913,84.115,84.035,0.47339712]
[1771767380773,0.47247913,84.115,84.044,0.47339712]
[1771767381085,0.47247913,84.105,84.044,0.47339712]
[1771767381593,0.47247913,84.135,84.062,0.47339712]
[1771767381763,0.47247913,84.133,84.073,0.28432314]
[1771767382083,0.47247913,84.133,84.084,0.47339712]
[1771767382582,0.47247913,84.125,84.066,0.47339712]
[1771767382965,0.47247913,84.115,84.066,0.47339712]
[1771767383586,0.47247913,84.113,84.066,0.47339712]
[1771767383790,0.47247913,84.105,84.066,0.47339712]
[1771767384089,11.8900409,84.104,84.068,0.47339712]
[1771767384587,0.47247913,84.103,84.068,0.47339712]
[1771767385184,0.47247913,84.103,84.059,0.47339712]
[1771767386262,11.89032365,84.102,84.061,0.47339712]
[1771767386467,0.47247913,84.101,84.061,0.47339712]
[1771767387174,0.47247913,84.099,84.049,0.47339712]
[1771767387378,0.28432314,84.088,84.012,19.49803644]
[1771767387571,0.28432314,84.06,84.012,7.59501422]
[1771767387777,0.47247913,84.055,83.992,3.69383402]
[1771767387978,0.47247913,84.055,84.005,11.90391186]
[1771767388387,0.47247913,84.053,83.999,11.90483824]
[1771767388591,0.47247913,84.053,84.0,29.76157957]
[1771767388878,12.3688477,84.06,84.011,41.66121102]
[1771767389081,11.89548302,84.066,84.014,3.69383402]
[1771767389288,0.47247913,84.061,84.011,11.90320315]
[1771767389501,0.47247913,84.055,84.012,0.47339712]
[1771767390074,0.47247913,84.049,84.011,0.47339712]
[1771767390285,0.47247913,84.047,84.011,0.47339712]
[1771767390695,0.47247913,84.054,84.013,0.47339712]
[1771767391895,0.47247913,84.054,84.01,13.0567376]
[1771767392092,0.47247913,84.054,84.011,0.47339712]
[1771767392299,0.47247913,84.064,84.013,0.47339712]
[1771767392506,0.47247913,84.122,84.015,0.47339712]
[1771767392670,0.47247913,84.122,84.014,41.65972337]
[1771767392671,0.47247913,84.121,84.033,0.47339712]
[1771767392873,0.47247913,84.121,84.029,3.69383402]
[1771767392874,0.47247913,84.121,84.046,0.28432314]
[1771767393076,0.47247913,84.121,84.055,0.47339712]
[1771767393277,0.47247913,84.121,84.065,0.47339712]
[1771767394404,0.47247913,84.119,84.067,0.47339712]
[1771767394880,0.47247913,84.117,84.067,0.47339712]
[1771767397509,11.88706516,84.126,84.074,0.28432314]
[1771767397799,59.40892976,84.163,84.068,41.63296378]
[1771767397800,0.47247913,84.161,84.085,0.47339712]
[1771767398099,0.46025939,84.156,84.085,0.47339712]
[1771767399002,0.46025939,84.146,84.085,0.47339712]
[1771767399182,0.46025939,84.136,84.085,0.47339712]
[1771767399782,0.46025939,84.128,84.075,12.38912709]
[1771767399992,0.46025939,84.126,84.076,0.49509692]
[1771767401098,0.46025939,84.126,84.075,11.89403017]
[1771767401401,0.46025939,84.116,84.066,0.49509692]
[1771767402698,41.609701,84.115,84.066,0.49509692]
[1771767402908,0.46025939,84.114,84.068,0.49509692]
[1771767404682,0.46025939,84.115,84.069,11.89499101]
[1771767404904,0.46025939,84.115,84.07,0.49509692]
[1771767405990,0.46025939,84.115,84.076,0.49509692]
[1771767406784,0.46025939,84.115,84.078,0.49509692]
[1771767408001,0.46025939,84.123,84.08,0.49509692]
[1771767411717,3.69383402,84.146,84.079,41.62751696]
[1771767411718,0.46025939,84.121,84.082,0.49509692]
[1771767412314,59.41841257,84.149,84.081,11.89329337]
[1771767412315,0.46025939,84.166,84.096,0.49509692]
[1771767412524,0.46025939,84.166,84.106,0.49509692]
[1771767414610,0.46025939,84.164,84.108,0.49509692]
[1771767416393,0.46025939,84.164,84.107,41.61365878]
[1771767416394,0.28432314,84.149,84.063,0.49509692]
[1771767416596,11.88594249,84.133,84.064,11.89569851]
[1771767416817,0.46025939,84.132,84.065,0.49509692]
[1771767417020,0.28432314,84.131,84.075,0.49509692]
[1771767417309,0.46025939,84.126,84.075,0.49509692]
[1771767419017,0.46025939,84.141,84.077,0.49509692]
[1771767419327,0.46025939,84.137,84.077,0.49509692]
[1771767419498,0.46025939,84.137,84.085,0.49509692]
[1771767421104,0.46025939,84.127,84.074,0.49509692]
[1771767423314,0.46025939,84.117,84.076,0.49509692]
[1771767424831,12.34719089,84.126,84.076,0.49509692]
[1771767425015,11.8869315,84.126,84.076,0.49509692]
[1771767425523,0.46025939,84.127,84.078,0.49509692]
[1771767427231,0.46025939,84.148,84.086,0.49509692]
[1771767427524,0.46025939,84.146,84.086,0.49509692]
[1771767429330,0.45307198,84.144,84.088,0.48716813]
[1771767430824,0.45307198,84.142,84.09,0.48716813]
[1771767431030,11.8845299,84.143,84.096,0.48716813]
[1771767431408,0.45307198,84.142,84.096,0.48716813]
[1771767433241,11.88481239,84.141,84.098,0.48716813]
[1771767433828,12.33788437,84.141,84.098,0.48716813]
[1771767434026,0.481677,84.14,84.098,0.48716813]
[1771767435718,0.481677,84.138,84.085,0.46603675]
[1771767436215,0.481677,84.136,84.085,0.46603675]
[1771767437232,0.481677,84.136,84.087,0.46603675]
[1771767437443,11.8850949,84.139,84.095,0.46603675]
[1771767437831,11.88438866,84.144,84.097,0.46603675]
[1771767438416,0.481677,84.145,84.101,0.46603675]
[1771767438734,0.481677,84.145,84.105,0.46603675]
[1771767439141,11.88438866,84.144,84.105,0.46603675]
[1771767439324,12.36606566,84.144,84.105,0.46603675]